Cogmind - Beta 12 @@@ ROGUE MODE // 2023.11.25 @ 21:22:32 Player: Dosh Result: Destroyed by D-53 Grenadier with Mini Grenade Launcher Performance ------------- Evolutions (0) 0 Regions Visited (4) 800 Robots Destroyed (20) 100 Value Destroyed (426) 426 Prototype IDs (23) 460 Alien Tech Used (0) 0 Bonus (170) 170 TOTAL SCORE: 1956 Bonus ------- Aligned with FarCom 300 Friendly Fire -130 Cogmind --------- Core Integrity 0/250 Matter 242/300 Energy 80/100 System Corruption 0% Temperature Cool (0) Movement Rolling (105) Ox1 Location -9/Mines Parts ------- > --- POWER (1) -------- (None) > --- PROPULSION (2) --- Wheel Compact Wheel > --- UTILITY (2) ------ Large Storage Unit > --- WEAPON (2) ------- Latent Energy Streamer > --- INVENTORY (15) --- Ion Engine Light Treads Compact Wheel Small Storage Unit Signal Interpreter Utility Shielding EM Pulse Gun Small Laser Small Laser Light Assault Rifle Mining Laser Peak State ------------ > --- POWER ------------ Ion Engine > --- PROPULSION ------- Wheel Compact Wheel > --- UTILITY ---------- Large Storage Unit Improved Terrain Scanner > --- WEAPON ----------- Light Assault Rifle Rocket Launcher > --- INVENTORY -------- Ion Engine Light Treads Compact Wheel Small Storage Unit Signal Interpreter Utility Shielding EM Pulse Gun Small Laser Small Laser Latent Energy Streamer Light Assault Rifle Mining Laser [Rating: 12] Favorites ----------- Power Ion Engine Engine Ion Engine Propulsion Light Treads Treads Light Treads Wheel Wheel Utility Improved Terrain Scanner Device Improved Terrain Scanner Storage Large Storage Unit Weapon Light Assault Rifle Energy Gun EM Pulse Gun Ballistic Gun Light Assault Rifle Launcher Rocket Launcher Special Weapon Mining Laser Build | -11 -10 -10 -10 -9 ------- Run | Jun Mat Min Exi Min Slots Evolved . | . . . . . Power . | . . . . . Propulsion . | . . . . . Utility . | . . . . . Weapon . | . . . . . Parts Attached 16 | 7 7 . . 2 Power 1 | 1 . . . . Engine 1 | 1 . . . . Core . | . . . . . Reactor . | . . . . . Propulsion 4 | 2 2 . . . Treads 2 | 2 . . . . Leg . | . . . . . Wheel 2 | . 2 . . . Hover . | . . . . . Flight . | . . . . . Utility 3 | 2 1 . . . Device 1 | 1 . . . . Storage 2 | 1 1 . . . Processor . | . . . . . Hackware . | . . . . . Protection . | . . . . . Artifact . | . . . . . Weapon 8 | 2 4 . . 2 Energy Gun 3 | 2 1 . . . Energy Cannon 1 | . . . . 1 Ballistic Gun 2 | . 2 . . . Ballistic Cannon . | . . . . . Launcher 1 | . . . . 1 Special Weapon 1 | . 1 . . . Impact Weapon . | . . . . . Slashing Weapon . | . . . . . Piercing Weapon . | . . . . . Special Melee Weapon . | . . . . . Unidentified Prototypes . | . . . . . Parts Lost 6 | . 2 . . 4 Power 1 | . . . . 1 Propulsion 1 | . 1 . . . Utility 1 | . . . . 1 Weapon 3 | . 1 . . 2 Highest Loss Streak 4 | . 2 . . 4 To Critical Strikes . | . . . . . Average Slot Usage (%) 98 | . 98 100 100 98 Engine 13 | . 14 14 14 12 Treads 13 | . 18 . . . Wheel 14 | . 8 28 28 28 Device 14 | . 14 14 14 14 Storage 14 | . 14 14 14 14 Energy Gun 11 | . 15 . . . Ballistic Gun 10 | . 8 14 14 14 Special Weapon 5 | . 2 14 14 10 Naked Turns . | . . . . . Heaviest Build 31 | 14 29 28 28 31 Greatest Support 40 | 40 40 26 26 26 Greatest Overweight (x) 1 | . 1 1 1 1 Average Overweight (x) . | . . 1 1 1 Largest Inventory Capacity 15 | 8 15 15 15 15 Average Capacity 12 | 7 12 15 15 15 Most Carried 12 | 4 10 11 12 12 Average Carried 7 | 2 6 10 11 12 Final Capacity 15 | 8 15 15 15 15 Final Carried 12 | 4 10 11 12 11 Class Distribution -------------------- 94% | Mutant 5% | Skirmisher Dominant Class ---------------- Mutant | -10/Materials Mutant | -10/Mines Mutant | -10/Exiles Skirmisher | -9/Mines Resources | -11 -10 -10 -10 -9 ----------- Run | Jun Mat Min Exi Min Matter Collected 353 | 265 88 . . . Remotely . | . . . . . Salvage Created 652 | 119 494 . . 39 Parts 42 | 7 34 . . 1 Haulers Intercepted . | . . . . . Recyclers Shooed 1 | . 1 . . . Parts Field Recycled . | . . . . . Retrieved Matter . | . . . . . Parts Self-Destructed . | . . . . . Prevented . | . . . . . Kills | -11 -10 -10 -10 -9 ------- Run | Jun Mat Min Exi Min Combat Hostiles Destroyed 14 | . 14 . . . Guns 13 | . 13 . . . AOE 1 | . 1 . . . Classes Destroyed 7 | 2 4 . . 1 Tunneler 1 | 1 . . . . Recycler 1 | 1 . . . . Operator 1 | . 1 . . . Watcher 2 | . 2 . . . Swarmer 6 | . 6 . . . Grunt 8 | . 8 . . . Guerrilla 1 | . . . . 1 Best Kill Streak 3 | 2 3 . . . Combat Bots Only 3 | . 3 . . . Max Kills in Single Turn 2 | 1 2 . . 1 Gunslinging 1 | . 1 . . . Exploded 1 | . 1 . . . Melee . | . . . . . Uniques/NPCs Destroyed . | . . . . . Combat | -11 -10 -10 -10 -9 -------- Run | Jun Mat Min Exi Min Damage Taken 993 | . 602 . . 391 Core 263 | . 126 . . 137 Absorbed by Shields . | . . . . . Regen/Repaired (Parts) 133 | . 133 . . . Core Remaining (%) 100 | 100 . . . . Volleys Fired 71 | 5 61 . . 5 Largest 2 | 2 2 . . 2 Hottest 120 | 80 120 . . 53 Shots Fired 127 | 10 109 . . 8 Gun 114 | 10 101 . . 3 Cannon . | . . . . . Launcher 5 | . . . . 5 Special 8 | . 8 . . . Kinetic 32 | . 29 . . 3 Thermal 45 | 5 40 . . . Explosive 5 | . . . . 5 Electromagnetic 45 | 5 40 . . . Robot Hit Streak 8 | 7 8 . . 3 Robot Miss Streak 5 | 2 5 . . 3 Penetration Max . | . . . . . Secondary Targets 3 | . 3 . . . Max Gunslinging Chain 1 | . 1 . . . Shots Hit Robots 61 | 7 50 . . 4 Core Hits 30 | 2 25 . . 3 Critical Kills . | . . . . . Critical Parts Destroyed . | . . . . . Critical Strikes 1 | . 1 . . . Corrupt 1 | . 1 . . . Melee Attacks . | . . . . . Impact . | . . . . . Slashing . | . . . . . Piercing . | . . . . . Sneak Attacks . | . . . . . Combat Hostiles . | . . . . . Follow-up Attacks . | . . . . . Damage Inflicted 826 | 83 682 . . 61 Guns 755 | 83 658 . . 14 Cannons . | . . . . . Explosions 69 | . 22 . . 47 Melee . | . . . . . Ramming 2 | . 2 . . . Kinetic 107 | . 93 . . 14 Thermal 257 | 30 227 . . . Explosive 47 | . . . . 47 Electromagnetic 413 | 53 360 . . . Impact . | . . . . . Slashing . | . . . . . Piercing . | . . . . . Highest Corruption . | . . . . . Average Corruption . | . . . . . Corruption Purged . | . . . . . Corruption Blocked . | . . . . . Overload Shots . | . . . . . Overflow Damage . | . . . . . Projectiles . | . . . . . Explosions . | . . . . . Melee . | . . . . . Knockbacks . | . . . . . Impact . | . . . . . Kinetic . | . . . . . Secondary . | . . . . . Self-Inflicted Damage 31 | . 31 . . . Shots 1 | . 1 . . . Rammed 3 | 1 2 . . . Targets Rammed 3 | 1 2 . . . Kicked . | . . . . . Crushed . | . . . . . Highest Temperature 216 | 36 216 . . 12 Average Temperature 64 | 19 70 . . 6 Received Heat Transfer 207 | . 207 . . . Siege Activations . | . . . . . Robots Corrupted . | . . . . . Combat Hostiles . | . . . . . Parts Fried 2 | . 2 . . . Impact Corruptions . | . . . . . Robots Melted . | . . . . . Combat Hostiles . | . . . . . Parts Melted . | . . . . . Heat Transferred 550 | 75 475 . . . Parts Sabotaged . | . . . . . Parts Stolen . | . . . . . Parts Stripped . | . . . . . Power Chain Reactions 1 | . 1 . . . Missiles Intercepted . | . . . . . Alert | -11 -10 -10 -10 -9 ------- Run | Jun Mat Min Exi Min Peak Influence 216 | 10 216 3 . 23 Initial 6 | . 6 3 . . Average 70 | 2 91 3 . 1 Maximum Alert Level 1 | . 1 . . . Low Security (%) 99 | 100 98 100 . 100 Level 1 . | . 1 . . . Level 2 . | . . . . . Level 3 . | . . . . . Level 4 . | . . . . . Level 5 . | . . . . . High Security . | . . . . . Max Security . | . . . . . Squads Dispatched 2 | . 2 . . . Investigation 2 | . 2 . . . Extermination . | . . . . . Reinforcement . | . . . . . Assault . | . . . . . Garrison . | . . . . . Intercept . | . . . . . Searches Triggered . | . . . . . Construction Impeded . | . . . . . Haulers Reinforced . | . . . . . Active Scanning Responses . | . . . . . Cargo Convoy Interrupts . | . . . . . Stealth | -11 -10 -10 -10 -9 --------- Run | Jun Mat Min Exi Min Distress Signals 2 | . 2 . . . Communications Jammed . | . . . . . Distress Signals . | . . . . . Times Spotted 22 | . 20 . . 2 Peak Tracking Total 3 | . 3 . . 2 Tactical Retreats . | . . . . . Traps | -11 -10 -10 -10 -9 ------- Run | Jun Mat Min Exi Min Traps Triggered 3 | . 3 . . . Indirectly . | . . . . . Trap Hack Attempts . | . . . . . Triggered . | . . . . . Disarmed . | . . . . . Reprogrammed . | . . . . . Reused . | . . . . . Traps Extracted . | . . . . . Installed . | . . . . . Triggered . | . . . . . Machines | -11 -10 -10 -10 -9 ---------- Run | Jun Mat Min Exi Min Machines Disabled 2 | . 1 . . 1 Max in Single Turn 1 | . 1 . . 1 Machines Repaired . | . . . . . Machines Sabotaged . | . . . . . Overloaded Fab Kills . | . . . . . Hacking | -11 -10 -10 -10 -9 --------- Run | Jun Mat Min Exi Min Machines Accessed 8 | . 6 . 2 . Terminals 5 | . 5 . . . Fabricators . | . . . . . Repair Stations 1 | . 1 . . . Recycling Units . | . . . . . Scanalyzers . | . . . . . Garrison Access . | . . . . . Total Hacks 19 | . 17 . 2 . Successful 12 | . 10 . 2 . Failed 7 | . 7 . . . Catastrophic 1 | . 1 . . . Database Lockouts . | . . . . . Manual 1 | . . . 1 . Terminals 15 | . 15 . . . Fabricators . | . . . . . Repair Stations 2 | . 2 . . . Recycling Units . | . . . . . Scanalyzers . | . . . . . Garrison Access . | . . . . . Terminal Hacks 10 | . 8 . 2 . Record 1 | . . . 1 . Level Access Points 1 | . 1 . . . Emergency Access Points 1 | . 1 . . . Locate Traps 2 | . 2 . . . Security Status 1 | . 1 . . . Reinforcement Status 1 | . 1 . . . Hauler Manifests 1 | . 1 . . . Zone Layout 1 | . 1 . . . EX-Prototype ID Bank 1 | . . . 1 . Fabricator Hacks . | . . . . . Repair Station Hacks 2 | . 2 . . . Scan Component 1 | . 1 . . . Repair 1 | . 1 . . . Recycling Unit Hacks . | . . . . . Scanalyzer . | . . . . . Garrison Access Hacks . | . . . . . Unauthorized Hacks . | . . . . . Terminals . | . . . . . Fabricators . | . . . . . Repair Stations . | . . . . . Recycling Units . | . . . . . Scanalyzers . | . . . . . Garrison Access . | . . . . . Data Cores Recovered 1 | . 1 . . . Used . | . . . . . Hacking Detections 5 | . 5 . . . Full Trace Events 1 | . 1 . . . Feedback Events . | . . . . . Feedback Blocked . | . . . . . Robot Schematics Acquired . | . . . . . Robots Built . | . . . . . Authchips . | . . . . . Time . | . . . . . Total Robot Build Rating . | . . . . . Part Schematics Acquired . | . . . . . Parts Built . | . . . . . Authchips . | . . . . . Time . | . . . . . Total Part Build Rating . | . . . . . Parts Repaired 1 | . 1 . . . Time 26 | . 26 . . . Parts Recycled . | . . . . . Recycled Matter . | . . . . . Retrieved Matter . | . . . . . Retrieved Components . | . . . . . Parts Scanalyzed . | . . . . . Part Schematics Acquired . | . . . . . Parts Damaged . | . . . . . Bothacking | -11 -10 -10 -10 -9 ------------ Run | Jun Mat Min Exi Min Used RIF Installer . | . . . . . Robots Hacked . | . . . . . Non-combat . | . . . . . Combat . | . . . . . Robot Hacks Applied . | . . . . . Relay Couplers Released . | . . . . . Fabnet Peak Effective % . | . . . . . Robots Rewired . | . . . . . Allies Hacked . | . . . . . Hacks Repelled . | . . . . . Allies | -11 -10 -10 -10 -9 -------- Run | Jun Mat Min Exi Min Total Allies 2 | . . . . 2 Largest Group 2 | . . . . 2 Highest-Rated Group 45 | . . . . 45 Highest-Rated Ally 31 | . . . . 31 Total Orders . | . . . . . Ally Attacks 5 | . . . . 5 Total Damage 20 | . . . . 20 Kills . | . . . . . Allies Corrupted . | . . . . . Allies Melted . | . . . . . Intel | -11 -10 -10 -10 -9 ------- Run | Jun Mat Min Exi Min Robot Analysis Total . | . . . . . Derelict Logs Recovered 1 | . . . . 1 Drone Launches . | . . . . . Drone Recoveries . | . . . . . Exploration | -11 -10 -10 -10 -9 ------------- Run | Jun Mat Min Exi Min Turns Passed 1924 | 151 1251 113 284 125 Spaces Moved 1274 | 78 715 107 269 105 Core 3 | 3 . . . . Treads 485 | 75 410 . . . Legs . | . . . . . Wheels 786 | . 305 107 269 105 Hover . | . . . . . Flight . | . . . . . Fastest Speed 50 | 50 105 105 105 105 Average Speed 126 | 155 138 105 105 105 Slowest Speed 240 | 160 240 105 105 105 Overloaded Moves . | . . . . . Propulsion Burnouts . | . . . . . Robots Hopped . | . . . . . Cave-ins Triggered . | . . . . . Exploration Rate (%) 43 | 4 93 22 62 38 Regions Visited 4 Branch Regions 3 Pre-discovered Areas 1 | . . . . 1 Known Exits Taken . | . . . . . Unknown Exits Taken 4 | 1 1 1 1 . Scrap Searched . | . . . . . Spaces Dug 7 | . 7 . . . Terrain Destroyed 30 | . 12 . . 18 Melee . | . . . . . Projectile 8 | . 8 . . . AOE 22 | . 4 . . 18 Terrain Rammed . | . . . . . Walls Destroyed . | . . . . . Machines Disabled . | . . . . . Actions | -11 -10 -10 -10 -9 --------- Run | Jun Mat Min Exi Min Total 1438 | 94 854 107 270 113 Wait 63 | . 62 . 1 . Move 1270 | 77 714 106 268 105 Hop . | . . . . . Pick Up 11 | 4 5 1 1 . Fast Attach 9 | 7 2 . . . Attach 5 | . 3 . . 2 Detach 4 | . 3 . . 1 Swap 2 | . 2 . . . Drop . | . . . . . Fire 71 | 5 61 . . 5 Melee . | . . . . . Ram . | . . . . . Kick . | . . . . . Crush 3 | 1 2 . . . Escape Stasis . | . . . . . Rewire . | . . . . . Trap . | . . . . . Miscellaneous . | . . . . . Route ------- -11/Junkyard -10/Materials (discovered 4 exits: *Mat x3 / [*Min]) -10/Mines -10/Exiles -9/Mines History --------- Turn | Location | Event 8 | -11/Junkyard | Discovered new exit (range 15) 152 | -11/Junkyard | Entered Materials 305 | -10/Materials | Build established: Mutant 747 | -10/Materials | Discovered new exit (range 6) 906 | -10/Materials | Discovered new exit (range 9) 961 | -10/Materials | Core integrity fell below 50% 1044 | -10/Materials | Identified exit to Materials 1164 | -10/Materials | Repaired Lgt. Treads 1403 | -10/Materials | Entered Mines 1410 | -10/Mines | Received a Rocket Launcher from a helpful Derelict 1512 | -10/Mines | Deemed a non-threat by the Exiles lab entrance 1512 | -10/Mines | Discovered new exit (range 5) 1516 | -10/Mines | Entered Exiles 1545 | -10/Exiles | Met 8R-AWN 1564 | -10/Exiles | Met EX-HEX 1596 | -10/Exiles | Met EX-BIN 1611 | -10/Exiles | Aligned with FarCom system 1612 | -10/Exiles | Given EX-Vault access code 1637 | -10/Exiles | Opened EX-Vault 1698 | -10/Exiles | Found Latent Energy Streamer 1719 | -10/Exiles | Warned to stay clear of 0b10 Research branches 1749 | -10/Exiles | Met EX-DEC 1787 | -10/Exiles | Discovered new exit (range 14) 1800 | -10/Exiles | Left Exiles lab with Latent Energy Streamer 1800 | -10/Exiles | Entered Mines 1847 | -9/Mines | Learned location of Recycling (-8) 1888 | -9/Mines | Assembled infested the area 1893 | -9/Mines | Assisted by a Guerilla fighting off Assembled 1918 | -9/Mines | Core integrity fell below 20% 1925 | -9/Mines | Destroyed by D-53 Grenadier with Mini Grenade Launcher Last Messages --------------- 01899_ LS-2V8(g) slips into the shadows. 01910_ QS-5KW(h): "I'll hold them off! Go on ahead or try to find another way!" 01912_ HV Slug penetrates D-53 Grenadier. 01912_ D-53 Grenadier suffers critical hit (Destroy). 01912_ D-53 Grenadier destroyed. 01912_ U-05 Engineer lays Concrete. 01912_ QS-5KW(h) destroyed. 01914_ U-05 Engineer builds a Wall. 01915_ Core Extractor disabled. 01916_ U-05 Engineer lays Concrete. 01917_ Ion Engine destroyed. 01917_ U-05 Engineer lays Concrete. 01918_ U-05 Engineer builds a Wall. 01921_ The unstable cave ceiling collapses. 01921_ Lgt. Assault Rifle destroyed. 01921_ Imp. Terrain Scanner destroyed. 01922_ U-05 Engineer builds a Wall. 01923_ Rocket Launcher destroyed. 01923_ BR-0GZ(g) destroyed. Map ----- +----------------------------------------------------+ | ??????????????????????????? ?????????????????? | | ??????????????????????????? ?????????????????? | | ??????????????????????????? #?????????????????? | | ??????????????????????????? #?????????????????# | | ??????????????????????????? ##????????????????? | | ???????????????????????????# ##???????????????? | | ??????????????????????????## ###?????????????? | | ?????????????????????????## ##???????#????? | | ????????????????????????## ###??????????? | | ???????????????????????## ????????#??#? | | ????????????????????#?## #??????#???????? | | ?????????????????????## #^ #???????????? | | ?????????????????????# ^ #????????????? | | ?????????????????????# #????????????????? | | ????????????????#????## ## ##???? ?????#?????? | | ??????????????????????## ### ##????????????????? | | ???????????????????????# #?# ##???????????????? | | ???????????????????????# #?# ###?#????????#??? | | ????????????#??????????# ### ##??#?????????? | | ????????????# ????????# ### ##????#??????? | | ????????????# ###??## u## ###?????##### | | ???????????# ###u ## ##???## # | | ??????????? % ### #??## # | | ?????????? = z ### #### | | ?????????? % ### ## | | ?????????? d @ ## ### | | ?????????? t #?? | | ?????????? ## #? | | ??????????? ## #### #? | | ??????????? ## #### #??# ##? | | ???????????? " ########??#####??#####?? | | ???????????? ???#??????????????????? | | ???????????? ## ?????????#????????????? | | ????????????? ??###### ????????????????????#?? | | ????????????? ???????### #?????????????????????#? | | ???????????????????????# ????#??????????????????? | | ???????????????????????###???????#??????????#????# | | ?????????????????????????????????????????????????? | | ??????????????????????????????#??????????????????? | | ????????????????????????????????#????????????????? | | ??????????????????????????????????????????#??????? | | ?????????????????????????????????????????????????? | | ?????????????????????????????????????????????????? | | ?????????????????????????????????????????????????? | | ?????????????????????????????????????????????????? | | | | | | | | | | | +----------------------------------------------------+ Best States ------------- Heat Dissipation 25 Energy Generation 10 Energy Capacity 250 Matter Stores 300 Matter Capacity 300 Sight Range 16 Terrain Scan Range 16 Terrain Scan Density 10 Evasion (%) 40 Recoil Reduction 2 Item Schematics ----------------- None Robot Schematics ------------------ None Fabricated ------------ Nothing Alien Tech Used ----------------- None Achievements -------------- None Challenges ------------ None Game ------ Seed HybridUltimateDevice Manual? 0 Play Time 00:11:28 Cumulative 22.5 hours Start 2023.11.25 @ 21:11:51 End 2023.11.25 @ 21:22:32 Sessions 1 Manual Loads 0 Difficulty Rogue Special Mode None Game No. 48 Rogue 48 Adventurer 0 Explorer 0 Win Type - Total 0 Types 0/0/0/0/0/0/0/0/0 Lore% 23 Gallery% 26 Achievement% 22 Wizard Run 0 Options --------- ASCII 0 Keyboard 1 Movement Numpad Keybinds 0 Fullscreen 2 Font 18/SmallcapsGlow Map View 76x50 Tactical HUD 1 Map Filters NONE Filters NONE Steam 1 RUN: 767cc448-3c42-45ab-98d5-3de55a953979